bitfinex-derivatives/quotes_BTCF0:USTF0_20251229
["timestamp","ask_amount","ask_price","bid_price","bid_amount"]
[1767042171976,0.05752,87338.0,87319.0,0.0519849]
[1767042172175,0.05752,87338.0,87326.0,0.0114647]
[1767042172369,0.00017182,87339.0,87331.0,0.0114641]
[1767042173280,0.00017182,87339.0,87328.0,0.0114645]
[1767042177677,0.00017182,87339.0,87322.0,0.09748]
[1767042177678,0.06125049,87353.0,87337.0,0.0114633]
[1767042177880,0.0116308,87359.0,87328.0,0.05752]
[1767042177881,0.06125049,87356.0,87328.0,0.05752]
[1767042178081,0.155,87355.0,87328.0,0.05752]
[1767042178276,0.05752,87354.0,87328.0,0.05752]
[1767042178481,0.155,87354.0,87328.0,0.05752]
[1767042178782,0.00017182,87350.0,87335.0,0.0114636]
[1767042178986,0.00017182,87350.0,87328.0,0.03515542]
[1767042180179,0.00017182,87350.0,87330.0,0.00017182]
[1767042181176,0.00017182,87350.0,87334.0,0.0114637]
[1767042181773,0.00017182,87350.0,87330.0,0.00017182]
[1767042183282,0.00017182,87350.0,87334.0,0.0114636]
[1767042184186,0.00017182,87350.0,87336.0,0.0114634]
[1767042184789,0.00017182,87350.0,87330.0,0.00017182]
[1767042185692,0.011462,87348.0,87320.0,0.09744]
[1767042185884,0.05752,87347.0,87320.0,0.0114656]
[1767042186191,0.05752,87347.0,87318.0,0.0709056]
[1767042186782,0.05752,87347.0,87324.0,0.00017182]
[1767042187292,0.05752,87347.0,87305.0,0.0114675]
[1767042187293,0.1734322,87334.0,87284.0,0.0114702]
[1767042187493,0.1734322,87310.0,87282.0,0.09744]
[1767042187791,0.0114642,87331.0,87282.0,0.09744]
[1767042187792,0.05752,87318.0,87290.0,0.0114694]
[1767042187982,0.05752,87318.0,87287.0,0.0114699]
[1767042188182,0.00017182,87311.0,87282.0,0.09744]
[1767042188383,0.00017182,87311.0,87299.0,0.0114682]
[1767042188591,0.06206063,87322.0,87300.0,0.15496]
[1767042188792,0.05752,87329.0,87301.0,0.15496]
[1767042189090,0.05752,87329.0,87302.0,0.15496]
[1767042189290,0.11980676,87329.0,87302.0,0.15496]
[1767042189490,0.11980676,87329.0,87303.0,0.05752]
[1767042189686,0.00017182,87325.0,87307.0,0.00017182]
[1767042189883,0.00017182,87325.0,87304.0,0.09744]
[1767042190188,0.0114652,87323.0,87304.0,0.09744]
[1767042190389,0.0114656,87320.0,87304.0,0.09744]
[1767042190987,0.0114652,87324.0,87304.0,0.09744]
[1767042191192,0.0114655,87322.0,87304.0,0.09744]
[1767042191783,0.0114652,87324.0,87304.0,0.09744]
[1767042191983,0.00017182,87325.0,87304.0,0.09744]
[1767042193392,0.00017182,87325.0,87304.0,0.07244]
[1767042196090,0.00017182,87325.0,87304.0,0.0839077]
[1767042196091,0.02436154,87324.0,87304.0,0.0839077]
[1767042196298,0.0613515,87337.0,87310.0,0.0114668]
[1767042196488,0.06413406,87337.0,87310.0,0.0114668]
[1767042196688,0.0613515,87341.0,87304.0,0.07244]
[1767042196887,0.12281049,87341.0,87304.0,0.07244]
[1767042197388,0.00017182,87331.0,87314.0,0.00017182]
[1767042197793,0.0613515,87330.0,87315.0,0.155]
[1767042198294,0.0613515,87330.0,87316.0,0.0114661]
[1767042198488,0.0613515,87330.0,87315.0,0.155]
[1767042198689,0.06152332,87331.0,87315.0,0.155]
[1767042200097,0.0613515,87330.0,87315.0,0.155]
[1767042200595,0.0613515,87330.0,87315.0,0.127]
[1767042200987,0.0613515,87329.0,87315.0,0.127]
[1767042202397,0.0613515,87329.0,87314.0,0.00017182]
[1767042202584,0.0613515,87328.0,87315.0,0.155]
[1767042204495,0.00017182,87331.0,87314.0,0.00017182]
[1767042204794,0.00017182,87331.0,87315.0,0.155]
[1767042204994,0.00017182,87331.0,87316.0,0.155]
[1767042207595,0.00017182,87331.0,87316.0,0.135]
[1767042208401,0.0239354,87330.0,87316.0,0.135]
[1767042208600,0.0239354,87329.0,87314.0,0.00017182]
[1767042208801,0.00017182,87331.0,87314.0,0.00017182]
[1767042208991,0.00017182,87331.0,87315.0,0.155]
[1767042209392,0.06145899,87341.0,87322.0,0.0114653]
[1767042209689,0.202,87351.0,87323.0,0.05752]
[1767042209895,0.0114612,87354.0,87323.0,0.05752]
[1767042210394,0.0114612,87354.0,87330.0,0.00017182]
[1767042210395,0.00017182,87347.0,87330.0,0.00017182]
[1767042210596,0.00017182,87347.0,87331.0,0.05735596]
[1767042210896,0.00017182,87347.0,87329.0,0.05752]
[1767042211393,0.00017182,87347.0,87330.0,0.155]
[1767042211797,0.09003723,87347.0,87330.0,0.15517182]
[1767042211994,0.00017182,87347.0,87330.0,0.15517182]
[1767042213506,0.00017182,87347.0,87331.0,0.05752]
[1767042214303,0.0932179,87347.0,87331.0,0.05752]
[1767042214701,0.0932179,87347.0,87331.0,0.04252]
[1767042217704,0.10468,87347.0,87331.0,0.04252]
[1767042219302,0.10468,87347.0,87331.0,0.00192496]
[1767042219303,0.08180201,87343.0,87331.0,0.00192496]
[1767042220596,0.08180201,87343.0,87332.0,0.05752]
[1767042221707,0.08180201,87343.0,87332.0,0.03352]
[1767042222294,0.08180201,87342.0,87332.0,0.03352]
[1767042222699,0.08180201,87343.0,87332.0,0.03352]
[1767042222904,0.1436109,87354.0,87333.0,0.0114639]
[1767042223095,0.1549748,87363.0,87334.0,0.0114637]
[1767042223096,0.08180201,87355.0,87334.0,0.0114637]
[1767042223301,0.08180201,87358.0,87332.0,0.03352]
[1767042223605,0.09333358,87359.0,87332.0,0.03352]
[1767042223809,0.08180201,87356.0,87333.0,0.05752]
[1767042224010,0.00017182,87353.0,87333.0,0.155]
[1767042224611,0.06150804,87347.0,87333.0,0.155]
[1767042225314,0.06150804,87349.0,87337.0,0.0114633]
[1767042225498,0.06150804,87350.0,87337.0,0.0114633]
[1767042226109,0.06150804,87351.0,87337.0,0.0114633]
[1767042226510,0.06150804,87352.0,87337.0,0.0114633]
[1767042228201,0.06150804,87352.0,87338.0,0.05752]
[1767042228400,0.00017182,87353.0,87330.0,0.00017182]
[1767042228600,0.0114619,87349.0,87331.0,0.15496]
[1767042228801,0.0114619,87349.0,87331.0,0.13796]
[1767042229210,0.0114615,87352.0,87331.0,0.13796]
[1767042229400,0.06183314,87353.0,87331.0,0.13796]
[1767042230600,0.17341975,87350.0,87331.0,0.13796]
[1767042235919,0.06183314,87353.0,87331.0,0.11996]
[1767042236130,0.17341975,87350.0,87331.0,0.11996]
[1767042238633,0.06150804,87349.0,87331.0,0.11996]
[1767042239029,0.23492779,87350.0,87331.0,0.11996]
[1767042239533,0.06150804,87344.0,87331.0,0.11996]
[1767042239732,0.03650804,87344.0,87331.0,0.1314241]
[1767042240033,0.06183314,87353.0,87335.0,0.0114635]
[1767042240337,0.06183314,87353.0,87331.0,0.11996]
[1767042240939,0.06183314,87353.0,87337.0,0.0114633]
[1767042241336,0.06183314,87353.0,87333.0,0.0114639]
[1767042241636,0.06183314,87353.0,87335.0,0.0114636]
[1767042243032,0.06183314,87353.0,87331.0,0.0994236]
[1767042243232,0.06183314,87353.0,87335.0,0.0114636]
[1767042244844,0.06183314,87353.0,87334.0,0.0114637]
[1767042245239,0.06183314,87353.0,87331.0,0.1108877]
[1767042246138,0.06183314,87353.0,87333.0,0.0114638]
[1767042249644,0.06183314,87353.0,87335.0,0.0114636]
[1767042249942,0.14363515,87353.0,87331.0,0.0994236]
[1767042250130,0.06183314,87353.0,87332.0,0.05752]
[1767042250331,0.06183314,87353.0,87333.0,0.15496]
[1767042250541,0.06183314,87353.0,87336.0,0.0114635]
[1767042251743,0.06183314,87353.0,87331.0,0.011464]
[1767042251946,0.06183314,87353.0,87333.0,0.0114639]
[1767042252947,0.06183314,87353.0,87332.0,0.15496]
[1767042253746,0.00017182,87353.0,87332.0,0.15496]
[1767042253946,0.00017182,87353.0,87340.0,0.17341975]
[1767042254248,0.08180201,87366.0,87356.0,0.0114608]
[1767042254443,9e-08,87369.0,87356.0,0.05752]
[1767042254954,0.17341975,87366.0,87356.0,0.04781006]
[1767042255252,9e-08,87369.0,87356.0,0.05752]
[1767042255446,0.0137623,87368.0,87356.0,0.05752]
[1767042257351,0.0137623,87368.0,87356.0,0.02952]
[1767042262257,0.00228918,87368.0,87356.0,0.02952]
[1767042264252,0.00228918,87368.0,87356.0,0.00352]
[1767042264457,0.06159486,87365.0,87356.0,0.05752]
[1767042266859,0.06159486,87366.0,87356.0,0.05752]
[1767042267158,0.06159486,87367.0,87356.0,0.05752]
[1767042267461,0.06159486,87365.0,87356.0,0.05752]
[1767042267954,0.1395791,87382.0,87356.0,0.05752]
[1767042268146,0.17341975,87380.0,87360.0,0.17341975]
[1767042268957,0.0001717,87379.0,87360.0,0.17341975]
[1767042269751,0.01189898,87379.0,87360.0,0.17341975]
[1767042270256,0.01189898,87379.0,87359.0,0.0114604]
[1767042270452,0.01189898,87379.0,87360.0,0.17341975]
[1767042271350,0.01189898,87379.0,87360.0,0.13841974]
[1767042271659,0.01189898,87379.0,87358.0,0.0114606]
[1767042271842,0.01189898,87379.0,87360.0,0.17341975]
[1767042273055,0.01189898,87379.0,87356.0,0.05752]
[1767042277661,0.01189898,87379.0,87356.0,0.0689808]
[1767042278458,0.01189898,87379.0,87356.0,0.03398079]
[1767042279160,0.01189898,87379.0,87356.0,0.02251999]
[1767042282870,0.01189898,87379.0,87356.0,0.03398079]
[1767042283054,0.0820991,87376.0,87356.0,0.03398079]
[1767042283669,0.0820991,87376.0,87356.0,0.02251999]
[1767042284165,0.0820991,87375.0,87356.0,0.02251999]
[1767042284467,0.0820991,87375.0,87357.0,0.0114607]
[1767042284665,0.0820991,87375.0,87360.0,0.17341975]
[1767042284866,0.0820991,87377.0,87360.0,0.17341975]
[1767042285565,0.0820991,87377.0,87360.0,0.14441975]
[1767042285777,0.0820991,87376.0,87360.0,0.17341975]
[1767042285958,0.01189898,87379.0,87360.0,0.17341975]
[1767042286159,0.01189898,87379.0,87356.0,0.02251999]
[1767042287968,0.06153914,87374.0,87356.0,0.02251999]
[1767042288373,0.06153914,87373.0,87356.0,0.02251999]
[1767042288668,0.06153914,87374.0,87360.0,0.17341975]
[1767042288869,0.06153914,87375.0,87360.0,0.17341975]
[1767042289267,0.06153914,87374.0,87360.0,0.17341975]
[1767042289462,0.06153914,87375.0,87360.0,0.18488005]
[1767042289670,0.06153914,87374.0,87360.0,0.17341975]
[1767042289868,0.0001717,87379.0,87364.0,0.17341975]
[1767042290169,0.05748,87388.0,87369.0,0.18487885]
[1767042290367,0.05748,87388.0,87370.0,0.15492]
[1767042290976,0.0576517,87388.0,87370.0,0.1550917]
[1767042292476,0.0001717,87388.0,87370.0,0.1665507]
[1767042293377,0.0001717,87388.0,87370.0,0.1450917]
[1767042293966,0.0001717,87388.0,87370.0,0.0001717]
[1767042294168,0.0001717,87388.0,87371.0,0.15492]
[1767042294770,0.0001717,87388.0,87370.0,0.0001717]
[1767042294976,0.0001717,87388.0,87372.0,0.05748]
[1767042295674,0.0001717,87388.0,87373.0,0.15492]
[1767042300479,0.0001717,87388.0,87373.0,0.13492]
[1767042302492,0.05748,87396.0,87373.0,0.13492]
[1767042302785,0.05748,87396.0,87380.0,0.0114576]
[1767042302976,0.05748,87396.0,87381.0,0.05748]
[1767042303178,0.0820991,87406.0,87381.0,0.05748]
[1767042303179,0.0820991,87407.0,87381.0,0.05748]
[1767042303375,0.0974,87409.0,87381.0,0.05748]
[1767042303680,0.00011416,87403.0,87385.0,0.0001717]
[1767042303874,0.00011416,87403.0,87386.0,0.05748]
[1767042304080,0.00011416,87403.0,87386.0,0.15488]
[1767042304675,0.00011416,87403.0,87386.0,0.1663369]
[1767042304893,0.00011416,87403.0,87386.0,0.15488]
[1767042305076,4.16e-06,87403.0,87386.0,0.1663369]
[1767042305475,4.16e-06,87403.0,87388.0,0.0114566]
[1767042306281,4.16e-06,87403.0,87387.0,0.0114568]
[1767042306890,4.16e-06,87403.0,87389.0,0.0114565]
[1767042307579,4.16e-06,87403.0,87389.0,0.0084565]
[1767042309591,4.16e-06,87403.0,87386.0,0.15488]
[1767042310382,4.16e-06,87403.0,87379.0,0.05748]
[1767042310383,0.17323326,87400.0,87379.0,0.05748]
[1767042310590,0.05748,87399.0,87379.0,0.05748]
[1767042311487,0.05748,87399.0,87380.0,0.0001717]
[1767042313997,0.05748,87399.0,87366.0,0.0114595]
[1767042313998,0.0114563,87391.0,87372.0,0.05748]
[1767042314878,0.0114563,87391.0,87373.0,0.0001717]
[1767042315189,0.15488,87399.0,87373.0,0.0001717]
[1767042315383,0.17323326,87390.0,87360.0,1.13962938]
[1767042315584,0.0974,87389.0,87360.0,1.13962938]
[1767042315881,0.05748,87388.0,87360.0,1.13962938]
[1767042316289,0.0114576,87382.0,87365.0,0.0001717]
[1767042320001,0.0001717,87383.0,87365.0,0.0001717]
[1767042320190,0.17323326,87375.0,87344.0,0.0974]
[1767042320395,0.15488,87374.0,87344.0,0.0974]
[1767042320596,0.0114588,87372.0,87344.0,0.0974]
[1767042320794,0.15488,87374.0,87344.0,0.1088624]
[1767042321099,0.15488,87374.0,87350.0,0.0001717]
[1767042321899,0.1663386,87374.0,87344.0,0.0815217]
[1767042322900,0.1663386,87374.0,87350.0,0.0001717]
[1767042323593,0.15488,87374.0,87350.0,0.0001717]
[1767042324396,0.15483,87374.0,87350.0,0.0001717]
[1767042325097,0.15483,87374.0,87338.0,0.00228997]
[1767042325303,0.0114595,87367.0,87338.0,0.00228997]
[1767042325603,0.05748,87366.0,87338.0,0.00228997]
[1767042326304,0.0001717,87361.0,87343.0,0.0001103]
[1767042326491,0.0974,87360.0,87343.0,0.0001103]
[1767042328897,0.0974,87360.0,87338.0,0.00186327]
[1767042329301,0.0974,87360.0,87339.0,0.011463]
[1767042329605,0.0974,87360.0,87338.0,0.00186327]
[1767042330001,0.27063326,87360.0,87338.0,0.00186327]
[1767042330302,0.0114605,87359.0,87338.0,0.00186327]
[1767042330492,0.05748,87358.0,87338.0,0.00186327]
[1767042340612,0.0614772,87357.0,87338.0,0.00186327]
[1767042340816,0.05748,87358.0,87304.0,0.0114676]
[1767042341015,0.0114615,87352.0,87322.0,0.0925714]
[1767042341213,0.0001717,87346.0,87322.0,0.09744]
[1767042341410,0.15492,87345.0,87322.0,0.09744]
[1767042342107,8.2e-05,87344.0,87322.0,0.09744]
[1767042342308,0.0114845,87344.0,87322.0,0.09744]
[1767042344608,0.0114845,87344.0,87322.0,0.1089053]
[1767042345206,8.2e-05,87344.0,87325.0,0.0114649]
[1767042347019,0.01151511,87344.0,87325.0,0.0114649]
[1767042348122,0.01151511,87344.0,87319.0,0.09744]
[1767042348320,0.01151511,87344.0,87325.0,0.0114649]
[1767042348723,8.2e-05,87344.0,87327.0,0.0114646]
[1767042350823,8.2e-05,87344.0,87319.0,0.09744]
[1767042351122,8.2e-05,87344.0,87324.0,0.011465]
[1767042352314,8.2e-05,87344.0,87319.0,0.09744]
[1767042352519,0.12992,87343.0,87332.0,0.011464]
[1767042352710,8.2e-05,87344.0,87332.0,0.011464]
[1767042352911,0.05748,87343.0,87332.0,0.011464]
[1767042353332,0.05748,87342.0,87332.0,0.011464]
[1767042354623,0.05748,87342.0,87321.0,0.0114654]
[1767042354624,0.05748,87342.0,87334.0,0.0114637]
[1767042355127,0.05748,87342.0,87323.0,0.0099289]
[1767042355321,0.05748,87342.0,87336.0,0.0114635]
[1767042355521,0.05748,87343.0,87336.0,0.0114635]
[1767042355728,8.2e-05,87344.0,87336.0,0.0114635]
[1767042356227,8.2e-05,87344.0,87321.0,0.0114654]
[1767042356426,8.2e-05,87344.0,87333.0,0.0114639]
[1767042358425,8.2e-05,87344.0,87329.0,0.0114644]
[1767042358624,8.2e-05,87344.0,87331.0,0.0114641]
[1767042358930,8.2e-05,87344.0,87320.0,0.17341645]
[1767042358931,8.2e-05,87344.0,87335.0,0.0114636]
[1767042359929,8.2e-05,87344.0,87332.0,0.011464]
[1767042364033,8.2e-05,87344.0,87334.0,0.0114637]
[1767042364327,8.2e-05,87344.0,87330.0,0.18488065]
[1767042365433,8.2e-05,87344.0,87332.0,0.0114639]
[1767042366434,8.2e-05,87344.0,87328.0,0.0114645]
[1767042369335,8.2e-05,87344.0,87324.0,0.05748]
[1767042369533,8.2e-05,87344.0,87330.0,0.17341645]
[1767042370030,0.0576517,87346.0,87330.0,0.17341645]
[1767042370334,0.05748,87351.0,87343.0,0.0114625]
[1767042370526,0.09744,87353.0,87338.0,0.17341645]
[1767042370930,0.0935586,87367.0,87341.0,0.0114627]
[1767042371131,0.0001717,87363.0,87345.0,0.0001717]
[1767042371334,0.0820991,87361.0,87345.0,0.0001717]
[1767042371528,0.1549694,87360.0,87345.0,0.0001717]
[1767042372123,0.15492,87359.0,87345.0,0.0001717]
[1767042374037,0.05748,87358.0,87345.0,0.0001717]
[1767042374836,0.05748,87357.0,87341.0,0.0114627]
[1767042375236,0.17346585,87360.0,87341.0,0.0114627]
[1767042375437,0.15492,87359.0,87339.0,0.0114631]
[1767042376338,0.15492,87359.0,87338.0,0.17341645]
[1767042376339,0.15492,87359.0,87338.0,0.15987955]
[1767042376735,0.15492,87359.0,87341.0,0.0114628]
[1767042377132,0.15492,87359.0,87338.0,0.17134275]
[1767042378136,0.15492,87359.0,87340.0,0.0114629]
[1767042379134,0.15492,87359.0,87342.0,0.0114627]
[1767042379536,0.15492,87359.0,87349.0,0.17341645]
[1767042380441,0.15492,87359.0,87343.0,0.05748]
[1767042381233,0.15492,87359.0,87347.0,0.011462]
[1767042382743,0.15492,87359.0,87349.0,0.17341645]
[1767042383441,0.15492,87359.0,87349.0,0.15641645]
[1767042385637,0.0001717,87363.0,87357.0,0.0114606]
[1767042385844,0.00228918,87368.0,87358.0,0.17341645]
[1767042386139,0.00228918,87368.0,87353.0,0.0114612]
[1767042387136,0.00228918,87368.0,87352.0,0.0001717]
[1767042387447,0.00228918,87368.0,87352.0,0.0116331]
[1767042387936,0.00228918,87368.0,87352.0,0.0001717]
[1767042389131,0.00228918,87368.0,87340.0,0.17341645]
[1767042389337,0.00228918,87368.0,87320.0,0.0114655]
[1767042389338,0.17341645,87350.0,87330.0,0.0114642]
[1767042389639,0.17341645,87350.0,87331.0,0.05748]
[1767042390146,0.0001717,87349.0,87331.0,0.0689441]
[1767042390538,0.0001717,87349.0,87331.0,0.0309441]
[1767042391048,0.0001717,87349.0,87331.0,0.01948]
[1767042392446,0.0001717,87349.0,87337.0,0.0114633]
[1767042393349,0.0001717,87349.0,87331.0,0.01948]
[1767042393540,0.0001717,87349.0,87339.0,0.17341645]
[1767042394042,0.05748,87357.0,87340.0,0.05748]
[1767042394241,0.05748,87357.0,87343.0,0.0114625]
[1767042394540,0.05748,87357.0,87340.0,0.05748]
[1767042394748,0.05748,87357.0,87340.0,0.0689429]
[1767042394949,0.0576517,87357.0,87340.0,0.0691146]
[1767042395336,0.0576517,87357.0,87343.0,0.0114626]
[1767042396644,0.0576517,87357.0,87340.0,0.0691147]
[1767042397350,0.0576517,87357.0,87342.0,0.0114627]
[1767042397749,0.0001717,87357.0,87340.0,0.0331144]
[1767042397950,0.0001717,87357.0,87342.0,0.0114627]
[1767042398943,0.0001717,87357.0,87344.0,0.0114624]
[1767042400155,0.06159885,87359.0,87340.0,0.0331144]
[1767042400156,0.06159885,87361.0,87347.0,0.17341645]
[1767042400455,0.06159885,87362.0,87350.0,0.17341645]
[1767042401048,0.06159885,87363.0,87350.0,0.18487805]
[1767042401248,0.06159885,87362.0,87350.0,0.18487805]
[1767042402957,0.06159885,87363.0,87352.0,0.0114614]
[1767042403258,0.06159885,87363.0,87350.0,0.17341645]
[1767042403949,0.06159885,87360.0,87350.0,0.17341645]
[1767042405454,0.06159885,87360.0,87350.0,0.15641645]
[1767042408259,0.06159885,87359.0,87350.0,0.15641645]
[1767042411261,0.06159885,87360.0,87350.0,0.15641645]
[1767042411756,0.06159885,87360.0,87347.0,0.05748]
[1767042411960,0.06159885,87360.0,87340.0,0.17358815]
[1767042412258,0.17341645,87360.0,87341.0,0.15492]
[1767042412458,0.06159885,87361.0,87341.0,0.15492]
[1767042412663,0.06159885,87361.0,87341.0,0.11092]
[1767042412959,0.06159885,87360.0,87341.0,0.11092]
[1767042413255,0.06159885,87360.0,87340.0,0.0001717]
[1767042413458,0.06159885,87360.0,87342.0,0.05748]
[1767042415058,0.06159885,87360.0,87340.0,0.0001717]
[1767042415263,0.06159885,87358.0,87340.0,0.0576517]
[1767042415450,0.05748,87357.0,87340.0,0.0576517]
[1767042416564,0.05748,87357.0,87340.0,0.0691146]
[1767042416765,0.05748,87357.0,87340.0,0.0576517]
[1767042419358,0.15492,87357.0,87340.0,0.0576517]
[1767042419866,0.15492,87357.0,87340.0,0.0266517]
[1767042420757,0.15492,87357.0,87340.0,0.0268234]
[1767042421261,0.0001717,87365.0,87340.0,0.20019649]
[1767042421471,0.0114557,87396.0,87366.0,0.0114595]
[1767042421763,0.0114531,87416.0,87357.0,0.05748]
[1767042421764,0.09744,87386.0,87357.0,0.05748]
[1767042421965,0.15492,87386.0,87373.0,0.0114586]
[1767042422466,0.0001717,87388.0,87375.0,0.0114583]
[1767042422667,0.0001717,87388.0,87372.0,0.0114588]
[1767042422868,0.0001717,87388.0,87373.0,0.05748]
[1767042423072,0.0001717,87388.0,87371.0,0.0001717]
[1767042423456,0.0114568,87387.0,87371.0,0.0001717]
[1767042423660,0.0114572,87385.0,87355.0,0.108901]
[1767042423962,0.15492,87384.0,87356.0,0.1086]
[1767042424262,0.15492,87384.0,87348.0,0.0114619]
[1767042424470,0.1663772,87384.0,87351.0,0.0114615]
[1767042424766,0.0001717,87376.0,87359.0,0.0001717]
[1767042424958,0.05748,87375.0,87359.0,0.0001717]
[1767042426467,0.05748,87375.0,87361.0,0.0114601]
[1767042426867,0.05748,87375.0,87359.0,0.0001717]
[1767042427069,0.05748,87375.0,87359.0,0.011632]
[1767042427259,0.05748,87375.0,87359.0,0.004632]
[1767042430875,0.05748,87375.0,87360.0,0.0114603]
[1767042434275,0.05748,87375.0,87352.0,0.0759003]
[1767042434777,0.0001717,87376.0,87363.0,0.0114599]
[1767042435362,0.0001717,87376.0,87352.0,0.0759003]
[1767042435567,0.0001717,87376.0,87365.0,0.0114596]
[1767042437979,0.0001717,87376.0,87362.0,0.01146]
[1767042438180,0.0001717,87376.0,87352.0,0.0759003]
[1767042438388,0.05744,87381.0,87365.0,0.0114596]
[1767042438684,0.05744,87381.0,87364.0,0.0114597]
[1767042439476,0.0576117,87381.0,87364.0,0.0116314]
[1767042441382,0.0576117,87381.0,87363.0,0.0735717]
[1767042444178,0.0576117,87381.0,87363.0,0.0850316]
[1767042444987,0.0576117,87381.0,87363.0,0.0735717]
[1767042445287,0.0576117,87381.0,87365.0,0.0114596]
[1767042447781,0.0576117,87381.0,87364.0,0.0114598]
[1767042448084,0.11921061,87381.0,87364.0,0.0114598]
[1767042448274,0.06159891,87380.0,87364.0,0.0114598]
[1767042448479,0.06159891,87380.0,87363.0,0.0540315]
[1767042449385,0.0001717,87381.0,87363.0,0.0540315]
[1767042450184,0.0001717,87381.0,87365.0,0.0114596]
[1767042450383,0.0001717,87381.0,87367.0,0.0114594]
[1767042451992,0.0001717,87381.0,87363.0,0.0540315]
[1767042452192,0.0001717,87381.0,87369.0,0.0114591]
[1767042452984,0.0001717,87381.0,87365.0,0.0114597]
[1767042453180,0.0001717,87381.0,87363.0,0.0540315]
[1767042453879,0.0001717,87381.0,87367.0,0.0114594]
[1767042455594,0.0001717,87381.0,87363.0,0.0354909]
[1767042456194,0.0001717,87381.0,87367.0,0.0114594]
[1767042461085,0.0001717,87381.0,87363.0,0.0354909]
[1767042461304,0.0001717,87381.0,87367.0,0.0114593]
[1767042461489,0.0001717,87381.0,87363.0,0.0354909]
[1767042461490,0.06177026,87380.0,87364.0,0.0114598]
[1767042461887,0.011458,87378.0,87342.0,0.03095752]
[1767042462191,0.23081309,87380.0,87352.0,0.0114613]
[1767042462385,0.05744,87380.0,87354.0,0.0114611]
[1767042462594,0.11921026,87380.0,87350.0,0.0114615]
[1767042462793,0.11921026,87380.0,87343.0,0.15484]
[1767042462794,0.11921026,87380.0,87352.0,0.0114613]
[1767042463200,0.05744,87380.0,87352.0,0.0114613]
[1767042463393,0.05744,87380.0,87354.0,0.0114611]
[1767042464001,0.05744,87380.0,87351.0,0.0114615]
[1767042464699,0.05744,87380.0,87353.0,0.0114612]
[1767042465602,0.05744,87380.0,87350.0,0.0114616]
[1767042465804,0.05744,87380.0,87352.0,0.0114614]
[1767042466195,0.05744,87380.0,87351.0,0.0114614]
[1767042470712,0.0114581,87377.0,87348.0,0.0114618]
[1767042470910,0.05744,87380.0,87353.0,0.0114612]
[1767042471107,0.05744,87380.0,87353.0,0.0114611]
[1767042471306,0.06177026,87379.0,87353.0,0.0114611]
[1767042471606,0.06177026,87379.0,87355.0,0.011461]
[1767042471913,0.06177026,87373.0,87355.0,0.011461]
[1767042472109,0.05744,87372.0,87355.0,0.011461]
[1767042472311,0.11921026,87372.0,87355.0,0.011461]
[1767042472702,0.06177026,87371.0,87355.0,0.011461]
[1767042473211,0.11921026,87372.0,87355.0,0.011461]
[1767042473822,0.11921026,87372.0,87354.0,0.011461]
[1767042474924,0.11921026,87372.0,87350.0,0.1733014]
[1767042475223,0.11921026,87372.0,87354.0,0.011461]
[1767042475424,0.06177026,87371.0,87354.0,0.011461]
[1767042476222,0.06177026,87371.0,87356.0,0.0114608]
[1767042476928,0.06177026,87371.0,87353.0,0.0114613]
[1767042477826,0.06177026,87371.0,87355.0,0.011461]
[1767042478812,0.06177026,87371.0,87357.0,0.0114607]
[1767042479018,0.11921026,87372.0,87350.0,0.1733014]
[1767042479927,0.05744,87372.0,87350.0,0.1733014]
[1767042480316,0.05744,87372.0,87349.0,0.0974]
[1767042480317,0.05744,87372.0,87364.0,0.0114597]
[1767042480517,6e-08,87373.0,87371.0,0.0114588]
[1767042480717,0.2134553,87399.0,87360.0,0.2707014]
[1767042480718,0.08236035,87388.0,87363.0,0.1733014]
[1767042481019,0.0974,87389.0,87378.0,0.1847593]
[1767042481922,0.0974,87389.0,87370.0,0.2707014]
[1767042482226,0.0974,87389.0,87376.0,0.0114582]
[1767042484636,0.0974,87389.0,87380.0,0.0114577]
[1767042485518,0.0974,87389.0,87379.0,0.1733014]
[1767042488535,0.2707014,87389.0,87350.0,0.20425892]
[1767042488739,0.1733014,87380.0,87360.0,0.1733014]
[1767042488930,0.05744,87383.0,87361.0,0.15484]
[1767042489836,0.05744,87383.0,87366.0,0.0114595]
[1767042490136,0.1733014,87380.0,87364.0,0.05744]
[1767042490334,0.0001717,87381.0,87364.0,0.0688997]
[1767042490528,0.0001717,87381.0,87364.0,0.05744]
[1767042491235,0.0001717,87381.0,87367.0,0.0114593]
[1767042491837,0.0001717,87381.0,87364.0,0.05744]
[1767042493239,0.0001717,87381.0,87365.0,0.0114596]
[1767042495141,0.0001717,87381.0,87368.0,0.0114593]
[1767042496229,0.0001717,87381.0,87371.0,0.0114588]
[1767042497542,0.05744,87383.0,87375.0,0.0114583]
[1767042498031,0.05744,87383.0,87372.0,0.0114587]
[1767042498938,0.05744,87383.0,87370.0,0.1597601]
[1767042499142,0.05744,87383.0,87370.0,0.1733014]
[1767042499343,0.05744,87383.0,87372.0,0.0114587]
[1767042499844,0.05744,87383.0,87370.0,0.1733014]
[1767042500045,0.05744,87383.0,87371.0,0.0114589]
[1767042502937,0.05744,87383.0,87370.0,0.2307414]
[1767042503338,0.05744,87383.0,87370.0,0.2422004]
[1767042503735,0.05744,87383.0,87372.0,0.0114587]
[1767042505150,0.05744,87383.0,87374.0,0.0114585]
[1767042506245,0.05744,87383.0,87370.0,0.2281999]
[1767042507247,0.05744,87383.0,87371.0,0.0114589]
[1767042507443,0.05744,87383.0,87354.0,0.011461]
[1767042507444,0.0114577,87380.0,87354.0,0.011461]
[1767042507749,0.1733014,87370.0,87355.0,0.15484]
[1767042508452,0.1733014,87365.0,87343.0,0.1088625]
[1767042508654,0.0001717,87363.0,87345.0,0.0114623]
[1767042508855,0.0001717,87363.0,87344.0,0.05744]
[1767042509544,0.1733014,87360.0,87344.0,0.05744]
[1767042509746,0.1733014,87354.0,87342.0,0.05744]
[1767042510750,0.05744,87357.0,87342.0,0.05744]
[1767042513153,0.05744,87357.0,87342.0,0.03944]
[1767042513449,0.05744,87357.0,87339.0,0.05744]
[1767042513852,0.1733014,87350.0,87339.0,0.05744]
[1767042514451,0.05744,87357.0,87338.0,0.00211827]
[1767042514650,0.1733014,87350.0,87338.0,0.00211827]
[1767042516555,0.05744,87357.0,87338.0,0.00211827]
[1767042520248,0.05744,87357.0,87335.0,0.05302127]
[1767042520448,0.05744,87357.0,87339.0,0.011463]
[1767042524560,0.05744,87357.0,87335.0,0.05302127]
[1767042524859,0.05744,87357.0,87345.0,0.0114623]
[1767042525460,0.05744,87357.0,87347.0,0.011462]
[1767042525760,0.05744,87358.0,87347.0,0.011462]
[1767042526151,0.0001717,87363.0,87349.0,0.0114617]
[1767042526351,0.15488,87362.0,87349.0,0.0114617]
[1767042526552,0.15488,87362.0,87346.0,0.0114621]
[1767042527364,0.15488,87362.0,87336.0,0.0114635]